[Event "Early-Titled-Tuesday-Blitz-April-23-2024"]
[Site "Chess.com"]
[Date "2024.04.23"]
[Round "2"]
[White "Rsnr"]
[Black "Machteldvf"]
[Result "1-0"]
[WhiteElo "2891"]
[BlackElo "2438"]
[TimeControl "180+1"]
[EndTime "8:18:31 PDT"]
[Termination "Rsnr won on time"]

1. e4 {[%clk 0:02:59.9]} 1... c5 {[%clk 0:02:59.6]} 2. Nf3 {[%clk 0:02:59.9]}
2... e6 {[%clk 0:02:59.8]} 3. c3 {[%clk 0:02:55.6]} 3... Nf6 {[%clk 0:02:57]} 4.
Bd3 {[%clk 0:02:54.8]} 4... d5 {[%clk 0:02:54.7]} 5. e5 {[%clk 0:02:54.4]} 5...
Nfd7 {[%clk 0:02:51.4]} 6. Bc2 {[%clk 0:02:55.1]} 6... Nc6 {[%clk 0:02:51.5]} 7.
d4 {[%clk 0:02:50.6]} 7... b6 {[%clk 0:02:46.4]} 8. O-O {[%clk 0:02:38.1]} 8...
Ba6 {[%clk 0:02:43.8]} 9. Re1 {[%clk 0:02:38.3]} 9... Rc8 {[%clk 0:02:42.6]} 10.
a3 {[%clk 0:02:36.5]} 10... Qc7 {[%clk 0:02:41.2]} 11. Bf4 {[%clk 0:02:16.3]}
11... cxd4 {[%clk 0:02:30]} 12. cxd4 {[%clk 0:02:17.2]} 12... Ncxe5 {[%clk
0:02:00.6]} 13. Nc3 {[%clk 0:01:42.6]} 13... Nxf3+ {[%clk 0:01:52.5]} 14. Qxf3
{[%clk 0:01:43.5]} 14... Qc6 {[%clk 0:01:43.2]} 15. Ba4 {[%clk 0:01:27.7]} 15...
b5 {[%clk 0:01:40.1]} 16. Bb3 {[%clk 0:01:27.9]} 16... Be7 {[%clk 0:01:37.9]}
17. Bxd5 {[%clk 0:01:05.1]} 17... Qb6 {[%clk 0:01:14.4]} 18. Ba2 {[%clk
0:00:53.6]} 18... O-O {[%clk 0:01:13.5]} 19. d5 {[%clk 0:00:45.1]} 19... Bb7
{[%clk 0:01:11.8]} 20. Qh3 {[%clk 0:00:43.7]} 20... Bc5 {[%clk 0:01:02.3]} 21.
Re2 {[%clk 0:00:26.8]} 21... e5 {[%clk 0:00:52.8]} 22. Qxd7 {[%clk 0:00:16.4]}
22... exf4 {[%clk 0:00:52.7]} 23. Qg4 {[%clk 0:00:16.6]} 23... b4 {[%clk
0:00:29]} 24. Na4 {[%clk 0:00:14.3]} 24... Qb5 {[%clk 0:00:21.8]} 25. Nxc5
{[%clk 0:00:14.3]} 25... Qxc5 {[%clk 0:00:21.4]} 26. Qxf4 {[%clk 0:00:12.9]}
26... bxa3 {[%clk 0:00:19.6]} 27. bxa3 {[%clk 0:00:13.8]} 27... Bxd5 {[%clk
0:00:14.7]} 28. Bxd5 {[%clk 0:00:09.3]} 28... Qxd5 {[%clk 0:00:14.7]} 29. h4
{[%clk 0:00:10]} 29... Qd3 {[%clk 0:00:14.3]} 30. Re3 {[%clk 0:00:09.7]} 30...
Qd2 {[%clk 0:00:11.6]} 31. Rae1 {[%clk 0:00:06.2]} 31... h6 {[%clk 0:00:11.9]}
32. Qg4 {[%clk 0:00:05.8]} 32... Qb2 {[%clk 0:00:09.2]} 33. Qg3 {[%clk
0:00:03.1]} 33... Qb6 {[%clk 0:00:07.5]} 34. Kh2 {[%clk 0:00:03.3]} 34... Rc2
{[%clk 0:00:07]} 35. Rf3 {[%clk 0:00:02.6]} 35... Qc7 {[%clk 0:00:03.3]} 36. Re5
{[%clk 0:00:03.1]} 36... f6 {[%clk 0:00:02.3]} 37. Ree3 {[%clk 0:00:03.1]} 37...
Qxg3+ {[%clk 0:00:02.6]} 38. Kxg3 {[%clk 0:00:04]} 38... Rd8 {[%clk 0:00:02.6]}
39. Re7 {[%clk 0:00:04.3]} 39... Rdd2 {[%clk 0:00:03.2]} 40. Rxa7 {[%clk
0:00:04.5]} 40... Re2 {[%clk 0:00:03.7]} 41. a4 {[%clk 0:00:04.8]} 41... Ra2
{[%clk 0:00:04.6]} 42. Rf4 {[%clk 0:00:05]} 42... Reb2 {[%clk 0:00:04.7]} 43.
Rc4 {[%clk 0:00:05]} 43... Rb3+ {[%clk 0:00:05.2]} 44. f3 {[%clk 0:00:05.1]}
44... Rbb2 {[%clk 0:00:05.4]} 45. Kf4 {[%clk 0:00:05.7]} 45... Rxg2 {[%clk
0:00:06.1]} 46. a5 {[%clk 0:00:06.1]} 46... Rh2 {[%clk 0:00:06.4]} 47. Kf5
{[%clk 0:00:06.6]} 47... Rab2 {[%clk 0:00:05.2]} 48. Rg4 {[%clk 0:00:06.8]}
48... Rb5+ {[%clk 0:00:01.7]} 49. Ke6 {[%clk 0:00:07.4]} 49... g5 {[%clk
0:00:01.3]} 50. Kxf6 {[%clk 0:00:07.3]} 1-0

[Event "Early-Titled-Tuesday-Blitz-April-23-2024"]
[Site "Chess.com"]
[Date "2024.04.23"]
[Round "2"]
[White "Seochesspie"]
[Black "jinbojinbo"]
[Result "0-1"]
[WhiteElo "2899"]
[BlackElo "2631"]
[TimeControl "180+1"]
[EndTime "8:18:32 PDT"]
[Termination "jinbojinbo won by resignation"]

1. e4 {[%clk 0:03:00.9]} 1... e5 {[%clk 0:02:59.7]} 2. Nf3 {[%clk 0:03:01.2]}
2... Nc6 {[%clk 0:03:00.1]} 3. Bb5 {[%clk 0:03:01.3]} 3... a6 {[%clk 0:02:59.9]}
4. Ba4 {[%clk 0:03:01.9]} 4... Nf6 {[%clk 0:03:00.2]} 5. O-O {[%clk 0:03:01.8]}
5... d6 {[%clk 0:03:00.6]} 6. Re1 {[%clk 0:02:59.6]} 6... Bd7 {[%clk 0:03:00.5]}
7. c3 {[%clk 0:02:57.7]} 7... g6 {[%clk 0:03:00.7]} 8. d4 {[%clk 0:02:55.2]}
8... Bg7 {[%clk 0:03:00.9]} 9. Nbd2 {[%clk 0:02:55.4]} 9... O-O {[%clk
0:03:00.2]} 10. h3 {[%clk 0:02:54.9]} 10... Re8 {[%clk 0:02:50.2]} 11. Bc2
{[%clk 0:02:54.7]} 11... b5 {[%clk 0:02:48.3]} 12. Nf1 {[%clk 0:02:53.2]} 12...
a5 {[%clk 0:02:45.4]} 13. Ng3 {[%clk 0:02:52.7]} 13... a4 {[%clk 0:02:45.5]} 14.
Be3 {[%clk 0:02:49.6]} 14... Na5 {[%clk 0:02:42.9]} 15. b3 {[%clk 0:02:48.6]}
15... Qc8 {[%clk 0:02:37]} 16. Qd2 {[%clk 0:02:42.8]} 16... c5 {[%clk
0:02:36.2]} 17. d5 {[%clk 0:02:37.7]} 17... Qc7 {[%clk 0:02:30.3]} 18. Nh2
{[%clk 0:02:30.5]} 18... Ra6 {[%clk 0:02:13.2]} 19. Rab1 {[%clk 0:02:18.5]}
19... axb3 {[%clk 0:02:02.7]} 20. axb3 {[%clk 0:02:18.5]} 20... Nb7 {[%clk
0:02:02.9]} 21. Bd3 {[%clk 0:02:11.8]} 21... Rea8 {[%clk 0:02:01.5]} 22. b4
{[%clk 0:02:11.9]} 22... c4 {[%clk 0:01:57.4]} 23. Bf1 {[%clk 0:02:09.8]} 23...
Nd8 {[%clk 0:01:52.8]} 24. Nf3 {[%clk 0:02:03.7]} 24... Be8 {[%clk 0:01:45.9]}
25. Qd1 {[%clk 0:02:00.7]} 25... Nd7 {[%clk 0:01:45.5]} 26. Nh2 {[%clk
0:01:54.1]} 26... h5 {[%clk 0:01:39.2]} 27. Be2 {[%clk 0:01:42.9]} 27... f6
{[%clk 0:01:18.8]} 28. f4 {[%clk 0:01:33]} 28... exf4 {[%clk 0:01:18.5]} 29.
Bxf4 {[%clk 0:01:33.2]} 29... h4 {[%clk 0:01:18.5]} 30. Ngf1 {[%clk 0:01:32.8]}
30... Nf7 {[%clk 0:01:11.8]} 31. Nf3 {[%clk 0:01:30.8]} 31... g5 {[%clk
0:01:10.2]} 32. Be3 {[%clk 0:01:28.1]} 32... Nfe5 {[%clk 0:01:09.7]} 33. Nd4
{[%clk 0:01:28.1]} 33... Bg6 {[%clk 0:01:07.6]} 34. Nd2 {[%clk 0:01:22.3]} 34...
Qb7 {[%clk 0:01:04.9]} 35. Rf1 {[%clk 0:01:20.6]} 35... Nf8 {[%clk 0:01:04.1]}
36. Nf5 {[%clk 0:01:18.1]} 36... Ra3 {[%clk 0:01:03.3]} 37. Bd4 {[%clk
0:01:17.2]} 37... Bxf5 {[%clk 0:01:01.8]} 38. Rxf5 {[%clk 0:01:17]} 38... Nfg6
{[%clk 0:01:02]} 39. Nf3 {[%clk 0:01:13.6]} 39... Ne7 {[%clk 0:00:56.8]} 40.
Nxe5 {[%clk 0:00:53.7]} 40... dxe5 {[%clk 0:00:57.7]} 41. Bc5 {[%clk 0:00:52.3]}
41... Nxf5 {[%clk 0:00:57.5]} 42. exf5 {[%clk 0:00:53.2]} 42... Rxc3 {[%clk
0:00:53.1]} 43. d6 {[%clk 0:00:52.4]} 43... Rca3 {[%clk 0:00:51.7]} 44. Bf3
{[%clk 0:00:44.2]} 44... e4 {[%clk 0:00:51.4]} 45. Bh5 {[%clk 0:00:43.3]} 45...
Rd3 {[%clk 0:00:48.7]} 46. Qe2 {[%clk 0:00:43.3]} 46... Bf8 {[%clk 0:00:44.8]}
47. Bg6 {[%clk 0:00:34.2]} 47... Bxd6 {[%clk 0:00:41.2]} 48. Qh5 {[%clk
0:00:34.3]} 48... Bxc5+ {[%clk 0:00:38.3]} 49. bxc5 {[%clk 0:00:34.4]} 49...
Rad8 {[%clk 0:00:37.5]} 50. c6 {[%clk 0:00:31.8]} 50... Qa7+ {[%clk 0:00:34.3]}
51. Kh1 {[%clk 0:00:29.2]} 51... c3 {[%clk 0:00:33]} 52. Be8 {[%clk 0:00:26.9]}
52... c2 {[%clk 0:00:25]} 53. Rf1 {[%clk 0:00:26.1]} 53... Qg7 {[%clk
0:00:24.3]} 54. Bd7 {[%clk 0:00:25]} 54... b4 {[%clk 0:00:22.1]} 55. Qe2 {[%clk
0:00:22]} 55... b3 {[%clk 0:00:20.4]} 56. Kh2 {[%clk 0:00:21.2]} 56... R8xd7
{[%clk 0:00:18.5]} 57. cxd7 {[%clk 0:00:21.2]} 57... Qxd7 {[%clk 0:00:19.4]} 58.
Qxe4 {[%clk 0:00:21.3]} 58... Rd1 {[%clk 0:00:18.9]} 59. Qa8+ {[%clk 0:00:19]}
59... Kh7 {[%clk 0:00:18.8]} 0-1

[Event "Early-Titled-Tuesday-Blitz-April-23-2024"]
[Site "Chess.com"]
[Date "2024.04.23"]
[Round "2"]
[White "Hope_6"]
[Black "BallottiLuca"]
[Result "1-0"]
[WhiteElo "2691"]
[BlackElo "2394"]
[TimeControl "180+1"]
[EndTime "8:18:34 PDT"]
[Termination "Hope_6 won on time"]

1. d4 {[%clk 0:02:50.3]} 1... d5 {[%clk 0:02:59.5]} 2. c4 {[%clk 0:02:49.7]}
2... c6 {[%clk 0:02:59.3]} 3. cxd5 {[%clk 0:02:49.3]} 3... cxd5 {[%clk
0:02:58.9]} 4. Nc3 {[%clk 0:02:50.2]} 4... Nf6 {[%clk 0:02:56.3]} 5. Bf4 {[%clk
0:02:50.2]} 5... Nc6 {[%clk 0:02:54.6]} 6. Nf3 {[%clk 0:02:50.2]} 6... Bf5
{[%clk 0:02:52.1]} 7. e3 {[%clk 0:02:49.4]} 7... e6 {[%clk 0:02:51.3]} 8. Bb5
{[%clk 0:02:48.5]} 8... Nd7 {[%clk 0:02:48.5]} 9. O-O {[%clk 0:02:41]} 9... Be7
{[%clk 0:02:47.1]} 10. Rc1 {[%clk 0:02:40.8]} 10... O-O {[%clk 0:02:44.7]} 11.
Na4 {[%clk 0:02:29.6]} 11... Rc8 {[%clk 0:02:40.4]} 12. Bxc6 {[%clk 0:02:11.7]}
12... bxc6 {[%clk 0:02:41.3]} 13. Ne5 {[%clk 0:02:07]} 13... Nxe5 {[%clk
0:02:41]} 14. Bxe5 {[%clk 0:02:07.9]} 14... Qa5 {[%clk 0:02:36.6]} 15. a3 {[%clk
0:01:48]} 15... Qb5 {[%clk 0:02:03]} 16. b4 {[%clk 0:01:38.3]} 16... Bd3 {[%clk
0:01:44.4]} 17. Re1 {[%clk 0:01:29.8]} 17... a5 {[%clk 0:01:25.1]} 18. Nc5
{[%clk 0:01:21.1]} 18... Bc4 {[%clk 0:01:16.2]} 19. Rb1 {[%clk 0:01:08.3]} 19...
Bxc5 {[%clk 0:00:35.1]} 20. bxc5 {[%clk 0:01:03.9]} 20... Qa6 {[%clk 0:00:35.7]}
21. Rb6 {[%clk 0:01:03.1]} 21... Qa8 {[%clk 0:00:36.2]} 22. a4 {[%clk
0:00:51.5]} 22... Rfd8 {[%clk 0:00:35.8]} 23. Qb1 {[%clk 0:00:45.5]} 23... f6
{[%clk 0:00:34.7]} 24. Bg3 {[%clk 0:00:40.6]} 24... Ba6 {[%clk 0:00:34.6]} 25.
Qb2 {[%clk 0:00:33.9]} 25... h6 {[%clk 0:00:26.3]} 26. Rb1 {[%clk 0:00:31.8]}
26... Kh7 {[%clk 0:00:23.8]} 27. Qc2+ {[%clk 0:00:23.4]} 27... Kh8 {[%clk
0:00:23.2]} 28. R1b2 {[%clk 0:00:23.1]} 28... Kg8 {[%clk 0:00:22.5]} 29. h3
{[%clk 0:00:21.4]} 29... Kh8 {[%clk 0:00:22.6]} 30. Qg6 {[%clk 0:00:20]} 30...
Kg8 {[%clk 0:00:17.2]} 31. Bf4 {[%clk 0:00:19.5]} 31... Kh8 {[%clk 0:00:15.7]}
32. Qg4 {[%clk 0:00:16.7]} 32... Kh7 {[%clk 0:00:14.4]} 33. Qxe6 {[%clk
0:00:16]} 33... Re8 {[%clk 0:00:14.2]} 34. Qf5+ {[%clk 0:00:15.7]} 34... Kh8
{[%clk 0:00:14.1]} 35. Qd7 {[%clk 0:00:14]} 35... Red8 {[%clk 0:00:10.4]} 36.
Qf7 {[%clk 0:00:13.5]} 36... Rf8 {[%clk 0:00:10.1]} 37. Qg6 {[%clk 0:00:13]}
37... Rfe8 {[%clk 0:00:08.7]} 38. Bd6 {[%clk 0:00:12.5]} 38... Red8 {[%clk
0:00:08.2]} 39. Be7 {[%clk 0:00:09.5]} 39... Re8 {[%clk 0:00:08.1]} 40. Bd6
{[%clk 0:00:08.6]} 40... Red8 {[%clk 0:00:08.1]} 41. Qf7 {[%clk 0:00:08.8]}
41... Re8 {[%clk 0:00:07.8]} 42. Bf4 {[%clk 0:00:07.8]} 42... Red8 {[%clk
0:00:07.3]} 43. g4 {[%clk 0:00:07.3]} 43... Re8 {[%clk 0:00:07.1]} 44. h4 {[%clk
0:00:07.1]} 44... Rf8 {[%clk 0:00:07.3]} 45. Qg6 {[%clk 0:00:07.1]} 45... Rfe8
{[%clk 0:00:07.9]} 46. g5 {[%clk 0:00:07.1]} 46... fxg5 {[%clk 0:00:07.6]} 47.
hxg5 {[%clk 0:00:07.2]} 47... hxg5 {[%clk 0:00:06.9]} 48. Qxg5 {[%clk
0:00:07.4]} 48... Qa7 {[%clk 0:00:05.1]} 49. Be5 {[%clk 0:00:07.1]} 49... Bc4
{[%clk 0:00:02.7]} 50. Rb7 {[%clk 0:00:06]} 1-0

[Event "Early-Titled-Tuesday-Blitz-April-23-2024"]
[Site "Chess.com"]
[Date "2024.04.23"]
[Round "2"]
[White "HamedWafa4"]
[Black "Daaksboy"]
[Result "1-0"]
[WhiteElo "2729"]
[BlackElo "2397"]
[TimeControl "180+1"]
[EndTime "8:18:36 PDT"]
[Termination "HamedWafa4 won on time"]

1. e4 {[%clk 0:03:00.9]} 1... c5 {[%clk 0:02:59.8]} 2. Nf3 {[%clk 0:03:00.3]}
2... d6 {[%clk 0:03:00.4]} 3. d4 {[%clk 0:02:58.8]} 3... cxd4 {[%clk 0:03:00.5]}
4. Nxd4 {[%clk 0:02:59.7]} 4... Nf6 {[%clk 0:03:00.9]} 5. Nc3 {[%clk 0:03:00.1]}
5... a6 {[%clk 0:03:01.2]} 6. Bg5 {[%clk 0:03:00.1]} 6... e6 {[%clk 0:03:01.3]}
7. Bc4 {[%clk 0:02:57.2]} 7... Be7 {[%clk 0:02:54.5]} 8. Bb3 {[%clk 0:02:56.2]}
8... b5 {[%clk 0:02:54.2]} 9. Qe2 {[%clk 0:02:53.3]} 9... Qc7 {[%clk 0:02:53.6]}
10. O-O-O {[%clk 0:02:37.2]} 10... O-O {[%clk 0:02:38.4]} 11. a3 {[%clk
0:02:24.4]} 11... Nc6 {[%clk 0:02:08.7]} 12. Nxc6 {[%clk 0:02:22.1]} 12... Qxc6
{[%clk 0:02:09.6]} 13. f4 {[%clk 0:02:20.5]} 13... h6 {[%clk 0:02:03.3]} 14. Bh4
{[%clk 0:02:18.5]} 14... Re8 {[%clk 0:01:56.8]} 15. e5 {[%clk 0:02:03.1]} 15...
dxe5 {[%clk 0:01:49.5]} 16. fxe5 {[%clk 0:02:02.3]} 16... Nd7 {[%clk 0:01:22.2]}
17. Bxe7 {[%clk 0:01:59.6]} 17... Rxe7 {[%clk 0:01:20.7]} 18. Rd6 {[%clk
0:01:53.6]} 18... Qc5 {[%clk 0:01:20.4]} 19. Rhd1 {[%clk 0:01:54.1]} 19... Ra7
{[%clk 0:00:58.5]} 20. Qe4 {[%clk 0:01:43]} 20... Rc7 {[%clk 0:00:49.9]} 21. Kb1
{[%clk 0:01:37.4]} 21... Bb7 {[%clk 0:00:37]} 22. Qe1 {[%clk 0:01:26.6]} 22...
Nxe5 {[%clk 0:00:28.8]} 23. Rd8+ {[%clk 0:01:26.2]} 23... Kh7 {[%clk 0:00:29.1]}
24. g4 {[%clk 0:01:13.5]} 24... Bf3 {[%clk 0:00:24.1]} 25. R1d4 {[%clk
0:01:09.1]} 25... Bxg4 {[%clk 0:00:20.5]} 26. Ne4 {[%clk 0:01:04.1]} 26... Qc6
{[%clk 0:00:17.3]} 27. Qg3 {[%clk 0:01:03.9]} 27... f6 {[%clk 0:00:12.4]} 28. h3
{[%clk 0:01:01.1]} 28... Red7 {[%clk 0:00:06.9]} 29. R8xd7 {[%clk 0:00:51.7]}
29... Rxd7 {[%clk 0:00:07.8]} 30. Rxd7 {[%clk 0:00:51.8]} 30... Nxd7 {[%clk
0:00:06.8]} 31. hxg4 {[%clk 0:00:52.5]} 31... Qxe4 {[%clk 0:00:06.7]} 32. Ka2
{[%clk 0:00:49.1]} 32... Nc5 {[%clk 0:00:06.7]} 33. Qd6 {[%clk 0:00:47.2]} 33...
Nxb3 {[%clk 0:00:07.1]} 34. cxb3 {[%clk 0:00:47.7]} 34... Qxg4 {[%clk
0:00:07.3]} 35. Qxa6 {[%clk 0:00:48.4]} 35... h5 {[%clk 0:00:08]} 36. Qxb5
{[%clk 0:00:46.4]} 36... h4 {[%clk 0:00:08.7]} 37. Qf1 {[%clk 0:00:45.3]} 37...
h3 {[%clk 0:00:07.8]} 38. a4 {[%clk 0:00:46]} 38... Qg2 {[%clk 0:00:07.9]} 39.
Qd3+ {[%clk 0:00:45.1]} 39... f5 {[%clk 0:00:08.2]} 40. Qd8 {[%clk 0:00:42.9]}
40... Qg4 {[%clk 0:00:06.1]} 41. Qb8 {[%clk 0:00:37.6]} 41... f4 {[%clk
0:00:04]} 42. Qb7 {[%clk 0:00:31.6]} 42... h2 {[%clk 0:00:03.3]} 43. Qe4+ {[%clk
0:00:30.6]} 43... Qf5 {[%clk 0:00:03.4]} 44. Qh1 {[%clk 0:00:30.3]} 44... Qh3
{[%clk 0:00:03.3]} 45. a5 {[%clk 0:00:31]} 45... f3 {[%clk 0:00:03.1]} 46. a6
{[%clk 0:00:30.3]} 46... f2 {[%clk 0:00:03.4]} 47. Qe4+ {[%clk 0:00:30]} 47...
Qf5 {[%clk 0:00:02.3]} 48. Qg2 {[%clk 0:00:26.8]} 48... f1=Q {[%clk 0:00:01.8]}
49. Qxh2+ {[%clk 0:00:27.3]} 49... Kg6 {[%clk 0:00:02]} 50. Qg3+ {[%clk
0:00:27.1]} 50... Kf7 {[%clk 0:00:02.1]} 51. Qc7+ {[%clk 0:00:27.2]} 51... Kf6
{[%clk 0:00:02.8]} 52. a7 {[%clk 0:00:26.8]} 52... Q5b5 {[%clk 0:00:02.3]} 53.
Qd8+ {[%clk 0:00:21.6]} 53... Kg6 {[%clk 0:00:01.5]} 54. a8=Q {[%clk 0:00:20.6]}
1-0

[Event "Early-Titled-Tuesday-Blitz-April-23-2024"]
[Site "Chess.com"]
[Date "2024.04.23"]
[Round "2"]
[White "KogotBobra17"]
[Black "agustinv04"]
[Result "1/2-1/2"]
[WhiteElo "2764"]
[BlackElo "2495"]
[TimeControl "180+1"]
[EndTime "8:18:41 PDT"]
[Termination "Game drawn by repetition"]

1. e4 {[%clk 0:03:00.9]} 1... e5 {[%clk 0:03:00.1]} 2. Nf3 {[%clk 0:03:00.1]}
2... Nc6 {[%clk 0:03:00.2]} 3. c3 {[%clk 0:03:00.4]} 3... Nf6 {[%clk 0:02:36.1]}
4. d4 {[%clk 0:03:00.4]} 4... d5 {[%clk 0:02:36.3]} 5. exd5 {[%clk 0:02:57.4]}
5... Qxd5 {[%clk 0:02:31.1]} 6. Be3 {[%clk 0:02:46]} 6... exd4 {[%clk
0:02:30.3]} 7. cxd4 {[%clk 0:02:46.9]} 7... Bb4+ {[%clk 0:02:29.4]} 8. Nc3
{[%clk 0:02:47]} 8... Bg4 {[%clk 0:02:30]} 9. Be2 {[%clk 0:02:46.1]} 9... Bxf3
{[%clk 0:02:28.1]} 10. Bxf3 {[%clk 0:02:47]} 10... Qc4 {[%clk 0:02:28.2]} 11.
Rc1 {[%clk 0:02:33.8]} 11... Qxa2 {[%clk 0:01:45]} 12. O-O {[%clk 0:02:33.2]}
12... Qxb2 {[%clk 0:01:44.7]} 13. Na4 {[%clk 0:02:29.6]} 13... Qa2 {[%clk
0:01:40.1]} 14. Rxc6 {[%clk 0:02:29.6]} 14... bxc6 {[%clk 0:01:37.5]} 15. Bxc6+
{[%clk 0:02:30.5]} 15... Ke7 {[%clk 0:01:36.8]} 16. d5 {[%clk 0:01:39.3]} 16...
Rhd8 {[%clk 0:01:01]} 17. Qd4 {[%clk 0:00:55.4]} 17... a5 {[%clk 0:00:57.8]} 18.
Nc3 {[%clk 0:00:26.3]} 18... Qc2 {[%clk 0:00:41.9]} 19. Re1 {[%clk 0:00:08.4]}
19... Kf8 {[%clk 0:00:41.1]} 20. Rc1 {[%clk 0:00:06.2]} 20... Qf5 {[%clk
0:00:38.4]} 21. Bxa8 {[%clk 0:00:05.8]} 21... Rxa8 {[%clk 0:00:37.3]} 22. Qc4
{[%clk 0:00:01.7]} 22... Kg8 {[%clk 0:00:26.7]} 23. Bc5 {[%clk 0:00:02.3]} 23...
Bxc3 {[%clk 0:00:19.9]} 24. Qxc3 {[%clk 0:00:02.2]} 24... Qxd5 {[%clk
0:00:17.5]} 25. Bd4 {[%clk 0:00:02.6]} 25... Ne4 {[%clk 0:00:17]} 26. Qe3 {[%clk
0:00:02.5]} 26... Rd8 {[%clk 0:00:15.5]} 27. Rb1 {[%clk 0:00:03.2]} 27... h6
{[%clk 0:00:13.8]} 28. f3 {[%clk 0:00:02]} 28... Nd2 {[%clk 0:00:11]} 29. Qxd2
{[%clk 0:00:01.9]} 29... Qxd4+ {[%clk 0:00:11.5]} 30. Qxd4 {[%clk 0:00:02.5]}
30... Rxd4 {[%clk 0:00:12.3]} 31. Rb8+ {[%clk 0:00:02.9]} 31... Kh7 {[%clk
0:00:12.2]} 32. Ra8 {[%clk 0:00:03.8]} 32... Rd5 {[%clk 0:00:11.2]} 33. Ra7
{[%clk 0:00:04]} 33... Rc5 {[%clk 0:00:11.9]} 34. Kf2 {[%clk 0:00:04.7]} 34...
Kg6 {[%clk 0:00:12.4]} 35. Ke3 {[%clk 0:00:05.3]} 35... f6 {[%clk 0:00:09.8]}
36. g3 {[%clk 0:00:05.9]} 36... h5 {[%clk 0:00:09.6]} 37. Kd4 {[%clk 0:00:04.4]}
37... Rc2 {[%clk 0:00:09.5]} 38. h3 {[%clk 0:00:03.1]} 38... Rf2 {[%clk
0:00:09.5]} 39. Ke3 {[%clk 0:00:03.1]} 39... Rc2 {[%clk 0:00:09.4]} 40. Rxa5
{[%clk 0:00:02.8]} 40... Rc6 {[%clk 0:00:09.8]} 41. g4 {[%clk 0:00:03]} 41...
hxg4 {[%clk 0:00:09.5]} 42. hxg4 {[%clk 0:00:03.9]} 42... Rc1 {[%clk 0:00:08.1]}
43. Kf4 {[%clk 0:00:04.4]} 43... Kf7 {[%clk 0:00:07.7]} 44. Ra7 {[%clk 0:00:05]}
44... Kg6 {[%clk 0:00:07.9]} 45. Rb7 {[%clk 0:00:05]} 45... Rc4+ {[%clk
0:00:08.3]} 46. Kg3 {[%clk 0:00:05.1]} 46... Kg5 {[%clk 0:00:06.6]} 47. Rb5+
{[%clk 0:00:05.7]} 47... c5 {[%clk 0:00:05.5]} 48. Rb7 {[%clk 0:00:05.9]} 48...
g6 {[%clk 0:00:04.5]} 49. Rc7 {[%clk 0:00:04.7]} 49... f5 {[%clk 0:00:04.5]} 50.
Rf7 {[%clk 0:00:03.2]} 50... f4+ {[%clk 0:00:04.1]} 51. Kh3 {[%clk 0:00:03]}
51... Rc3 {[%clk 0:00:03.9]} 52. Kg2 {[%clk 0:00:03.7]} 52... Kh4 {[%clk
0:00:03.6]} 53. Rh7+ {[%clk 0:00:03.4]} 53... Kg5 {[%clk 0:00:04.2]} 54. Rf7
{[%clk 0:00:04]} 54... Rc2+ {[%clk 0:00:04.4]} 55. Kg1 {[%clk 0:00:04.7]} 55...
Rc3 {[%clk 0:00:05.1]} 56. Kg2 {[%clk 0:00:05.1]} 1/2-1/2

[Event "Early-Titled-Tuesday-Blitz-April-23-2024"]
[Site "Chess.com"]
[Date "2024.04.23"]
[Round "2"]
[White "GMKrikor"]
[Black "HajiyevKanan"]
[Result "1-0"]
[WhiteElo "2886"]
[BlackElo "2608"]
[TimeControl "180+1"]
[EndTime "8:18:43 PDT"]
[Termination "GMKrikor won on time"]

1. Nf3 {[%clk 0:03:00.9]} 1... d5 {[%clk 0:03:00.1]} 2. c4 {[%clk 0:02:59.4]}
2... c6 {[%clk 0:03:00]} 3. d4 {[%clk 0:02:59.5]} 3... Nf6 {[%clk 0:03:00.7]} 4.
Nc3 {[%clk 0:02:59.5]} 4... a6 {[%clk 0:03:01.1]} 5. Qc2 {[%clk 0:02:58.6]} 5...
g6 {[%clk 0:03:00.4]} 6. Bg5 {[%clk 0:02:49.8]} 6... Bg7 {[%clk 0:02:58.8]} 7.
cxd5 {[%clk 0:02:44.5]} 7... cxd5 {[%clk 0:02:57.3]} 8. Bxf6 {[%clk 0:02:42.6]}
8... Bxf6 {[%clk 0:02:56.6]} 9. Nxd5 {[%clk 0:02:41]} 9... Qa5+ {[%clk
0:02:26.4]} 10. b4 {[%clk 0:02:28.1]} 10... Qxd5 {[%clk 0:02:21.8]} 11. Qxc8+
{[%clk 0:02:27.6]} 11... Qd8 {[%clk 0:02:22.6]} 12. Qxd8+ {[%clk 0:02:13.2]}
12... Kxd8 {[%clk 0:02:23.5]} 13. e3 {[%clk 0:02:13.4]} 13... Nc6 {[%clk
0:02:21.4]} 14. Bc4 {[%clk 0:01:35.9]} 14... e6 {[%clk 0:02:09.9]} 15. a3 {[%clk
0:01:34.1]} 15... Rc8 {[%clk 0:02:09.6]} 16. Bb3 {[%clk 0:01:25.5]} 16... Ke7
{[%clk 0:02:02.4]} 17. Ke2 {[%clk 0:01:20.7]} 17... Rc7 {[%clk 0:02:02.4]} 18.
Rad1 {[%clk 0:01:16.5]} 18... Na7 {[%clk 0:01:45.9]} 19. Rd3 {[%clk 0:01:13]}
19... Nb5 {[%clk 0:01:41.5]} 20. Ra1 {[%clk 0:01:10.8]} 20... Rhc8 {[%clk
0:01:40.4]} 21. Kd2 {[%clk 0:01:04.7]} 21... Nc3 {[%clk 0:01:22.5]} 22. Ke1
{[%clk 0:00:57.8]} 22... Kd6 {[%clk 0:01:13.7]} 23. Nd2 {[%clk 0:00:50.8]} 23...
Bg7 {[%clk 0:01:02.8]} 24. Rc1 {[%clk 0:00:48.3]} 24... Nb5 {[%clk 0:00:53.1]}
25. Rxc7 {[%clk 0:00:45.3]} 25... Rxc7 {[%clk 0:00:52]} 26. Bc4 {[%clk
0:00:40.9]} 26... Na7 {[%clk 0:00:45]} 27. Kd1 {[%clk 0:00:38.6]} 27... f5
{[%clk 0:00:43.6]} 28. Bb3 {[%clk 0:00:37.7]} 28... Nb5 {[%clk 0:00:42.9]} 29.
Bc4 {[%clk 0:00:33]} 29... Na7 {[%clk 0:00:42.8]} 30. f4 {[%clk 0:00:32.5]}
30... Bf6 {[%clk 0:00:41.9]} 31. g3 {[%clk 0:00:32.2]} 31... h6 {[%clk
0:00:42.3]} 32. e4 {[%clk 0:00:18.7]} 32... fxe4 {[%clk 0:00:33.1]} 33. Nxe4+
{[%clk 0:00:19.6]} 33... Ke7 {[%clk 0:00:33.9]} 34. Bb3 {[%clk 0:00:13.8]} 34...
Nb5 {[%clk 0:00:32.5]} 35. Nxf6 {[%clk 0:00:12]} 35... Kxf6 {[%clk 0:00:33.4]}
36. a4 {[%clk 0:00:12.2]} 36... Nc3+ {[%clk 0:00:33]} 37. Kd2 {[%clk 0:00:12.6]}
37... Ne4+ {[%clk 0:00:17.3]} 38. Ke3 {[%clk 0:00:13]} 38... Nd6 {[%clk
0:00:16.7]} 39. Kd2 {[%clk 0:00:12.3]} 39... Ne4+ {[%clk 0:00:16.8]} 40. Ke3
{[%clk 0:00:12.7]} 40... Nd6 {[%clk 0:00:17.7]} 41. Ke2 {[%clk 0:00:06.8]} 41...
Ne4 {[%clk 0:00:17]} 42. Re3 {[%clk 0:00:05.9]} 42... Kf5 {[%clk 0:00:08.7]} 43.
Bxe6+ {[%clk 0:00:05.4]} 43... Kxe6 {[%clk 0:00:07]} 44. Rxe4+ {[%clk
0:00:06.1]} 44... Kd5 {[%clk 0:00:07.9]} 45. Kd3 {[%clk 0:00:06.7]} 45... Kd6
{[%clk 0:00:02.3]} 46. Re5 {[%clk 0:00:05.3]} 46... Rc1 {[%clk 0:00:03]} 47. g4
{[%clk 0:00:03.8]} 47... Rd1+ {[%clk 0:00:03.2]} 48. Ke4 {[%clk 0:00:03.7]}
48... Rh1 {[%clk 0:00:04.1]} 49. f5 {[%clk 0:00:03.3]} 49... gxf5+ {[%clk
0:00:03.3]} 50. Rxf5 {[%clk 0:00:03]} 50... Rxh2 {[%clk 0:00:04.2]} 51. Rh5
{[%clk 0:00:03.5]} 51... Re2+ {[%clk 0:00:03.1]} 52. Kd3 {[%clk 0:00:04]} 52...
Rb2 {[%clk 0:00:04]} 53. Kc3 {[%clk 0:00:03.4]} 53... Kc7 {[%clk 0:00:04.9]} 54.
Kxb2 {[%clk 0:00:03.1]} 1-0